bitfinex-derivatives/quotes_ETHF0:USTF0_20250905
["timestamp","ask_amount","ask_price","bid_price","bid_amount"]
[1757049150757,0.233,4337.5,4337.4,0.4138]
[1757049150957,0.233,4337.5,4337.4,0.7333]
[1757049151453,0.65289075,4337.6,4337.5,0.1186]
[1757049151659,0.88589075,4337.6,4337.5,0.8519]
[1757049151853,0.4472,4337.6,4337.5,0.8519]
[1757049152156,1.10009075,4337.6,4337.5,0.8519]
[1757049152352,1.40319075,4337.6,4337.5,0.8519]
[1757049152557,1.60359075,4337.6,4337.5,0.7333]
[1757049156163,2.59109075,4337.6,4337.5,0.7333]
[1757049156462,0.7177,4337.2,4337.1,0.7333]
[1757049156663,0.65289075,4337.4,4337.2,0.3195]
[1757049156863,1.2205,4337.6,4337.4,0.4138]
[1757049156864,0.4146,4337.5,4337.4,0.4138]
[1757049157163,1.37059075,4337.5,4337.4,0.7333]
[1757049158559,0.3031,4337.4,4337.0,3.3264]
[1757049158763,1.37059075,4337.1,4337.0,3.7402]
[1757049159158,1.37059075,4337.1,4337.0,4.0597]
[1757049161158,1.06749075,4337.1,4337.0,4.0597]
[1757049161559,1.37059075,4337.1,4337.0,4.0597]
[1757049164564,1.37059075,4337.1,4337.0,3.7367]
[1757049164870,1.37059075,4337.1,4337.0,3.9411]
[1757049167469,1.37059075,4337.1,4337.0,0.7333]
[1757049169069,0.1221,4337.0,4336.6,0.3194]
[1757049169369,0.7107,4336.6,4336.5,3.7274]
[1757049169565,0.85639075,4336.6,4336.5,3.7274]
[1757049169774,0.85639075,4336.6,4336.5,4.0468]
[1757049171584,0.65289075,4336.6,4336.5,4.0468]
[1757049171777,0.65289075,4336.9,4336.8,0.3967]
[1757049171984,0.65289075,4336.9,4336.8,0.7161]
[1757049174490,0.85639075,4336.9,4336.8,0.7161]
[1757049174786,1.36359075,4336.9,4336.8,0.7161]
[1757049178193,0.85639075,4336.9,4336.8,0.7161]
[1757049178787,1.16469075,4336.9,4336.8,0.7161]
[1757049178987,1.36359075,4336.9,4336.8,0.7161]
[1757049186699,2.35129075,4336.9,4336.8,0.7161]
[1757049191501,2.35129075,4336.9,4336.8,0.5176]
[1757049191802,0.4024,4336.6,4336.5,6.7274]
[1757049191998,1.36359075,4336.6,4336.5,6.7274]
[1757049192400,0.9437,4336.6,4336.5,3.0]
[1757049192703,0.9437,4336.6,4336.5,3.5176]
[1757049195007,0.7107,4336.6,4336.5,3.5176]
[1757049195210,0.9437,4336.6,4336.5,3.5176]
[1757049197309,0.9437,4336.6,4336.5,3.7161]
[1757049197708,0.9437,4336.6,4336.5,3.839]
[1757049199405,0.7107,4336.6,4336.5,3.839]
[1757049199611,0.233,4336.6,4336.5,3.5196]
[1757049200206,0.233,4336.6,4336.5,3.8333]
[1757049201315,0.4273,4336.6,4336.5,3.8333]
[1757049202406,0.7372,4336.6,4336.5,3.8333]
[1757049203316,1.725,4336.6,4336.5,3.8333]
[1757049205317,1.9277,4336.6,4336.5,3.8333]
[1757049205517,1.9277,4336.6,4336.5,3.8278]
[1757049206217,1.9277,4336.6,4336.5,3.0]
[1757049206609,1.9277,4336.6,4336.5,3.5217]
[1757049212223,1.9277,4336.6,4336.5,3.73]
[1757049213724,1.6947,4336.6,4336.5,3.8474]
[1757049213924,2.72279974,4336.6,4336.5,3.8474]
[1757049214222,2.72279974,4336.6,4336.5,3.73]
[1757049216422,2.72279974,4336.6,4336.5,3.8474]
[1757049217125,2.72279974,4336.6,4336.5,3.73]
[1757049217823,2.72279974,4336.6,4336.5,3.8474]
[1757049220326,2.21019974,4336.6,4336.5,3.8474]
[1757049220725,2.52009974,4336.6,4336.5,3.8474]
[1757049221229,2.72279974,4336.6,4336.5,3.5217]
[1757049221429,2.72279974,4336.6,4336.5,3.73]
[1757049221631,3.31359974,4336.6,4336.5,3.73]
[1757049223431,3.31359974,4336.6,4336.5,3.5217]
[1757049223729,3.31359974,4336.6,4336.5,3.8474]
[1757049224928,3.31359974,4336.6,4336.5,3.5217]
[1757049225329,3.31359974,4336.6,4336.5,3.73]
[1757049226124,3.31359974,4336.6,4336.5,3.5217]
[1757049227031,3.31359974,4336.6,4336.5,3.73]
[1757049227229,3.31359974,4336.6,4336.5,3.8474]
[1757049227625,2.80099974,4336.6,4336.5,3.8474]
[1757049228432,3.31049974,4336.6,4336.5,3.8474]
[1757049231023,3.31049974,4336.6,4336.5,3.73]
[1757049232635,3.13099974,4336.6,4336.5,4.16548193]
[1757049234735,3.32749974,4336.6,4336.5,3.83998193]
[1757049234939,3.32749974,4336.6,4336.5,4.04698193]
[1757049238740,2.81799974,4336.6,4336.5,4.16418193]
[1757049239039,3.13099974,4336.6,4336.5,4.16418193]
[1757049239541,3.32749974,4336.6,4336.5,3.83998193]
[1757049239931,3.32749974,4336.6,4336.5,4.04698193]
[1757049242935,3.32749974,4336.6,4336.5,4.16418193]
[1757049243438,2.60669974,4336.6,4336.5,4.16418193]
[1757049244446,2.81799974,4336.6,4336.5,4.16418193]
[1757049245644,3.32749974,4336.6,4336.5,4.16418193]
[1757049247548,3.32749974,4336.6,4336.5,4.04698193]
[1757049248148,2.5324,4336.6,4336.5,4.04698193]
[1757049248455,3.32749974,4336.6,4336.5,4.16418193]
[1757049248944,3.32749974,4336.6,4336.5,4.04698193]
[1757049250552,2.81799974,4336.6,4336.5,4.16418193]
[1757049250746,3.13099974,4336.6,4336.5,4.16418193]
[1757049252553,2.81799974,4336.6,4336.5,4.16418193]
[1757049253848,3.13099974,4336.6,4336.5,4.16418193]
[1757049254554,3.32749974,4336.6,4336.5,4.16418193]
[1757049254753,3.32749974,4336.6,4336.5,4.04698193]
[1757049257959,1.5786,4336.6,4336.5,4.17178193]
[1757049258151,1.5786,4336.6,4336.5,4.40238193]
[1757049258351,1.8116,4336.6,4336.5,4.17178193]
[1757049258546,1.8116,4336.6,4336.5,4.40238193]
[1757049258745,1.8116,4336.6,4336.5,4.17178193]
[1757049260357,2.0249,4336.6,4336.5,4.17178193]
[1757049261658,2.0249,4336.6,4336.5,4.17166186]
[1757049262559,1.8116,4336.6,4336.5,4.17166186]
[1757049265962,1.8116,4336.6,4336.5,4.17189362]
[1757049269064,1.5786,4336.6,4336.5,4.17189362]
[1757049269363,1.8116,4336.6,4336.5,4.17189362]
[1757049271453,1.5786,4336.6,4336.5,4.17189362]
[1757049272966,1.5786,4336.6,4336.5,3.8535]
[1757049273167,1.5786,4336.6,4336.5,4.17199779]
[1757049274462,1.5786,4336.6,4336.5,3.8535]
[1757049274661,1.5786,4336.6,4336.5,4.17193425]
[1757049280273,1.7919,4336.6,4336.5,4.17193425]
[1757049280475,2.0875,4336.6,4336.5,4.40493425]
[1757049280662,1.7919,4336.6,4336.5,4.40493425]
[1757049281067,1.5786,4336.6,4336.5,4.40493425]
[1757049281267,1.5786,4336.6,4336.5,4.40476504]
[1757049282477,1.5786,4336.6,4336.5,4.40479936]
[1757049282674,1.5786,4336.6,4336.5,4.40479903]
[1757049290396,1.7844,4336.6,4336.5,4.40479903]
[1757049290596,2.1017,4336.6,4336.5,4.40479903]
[1757049290795,2.95546843,4336.6,4336.5,4.27999903]
[1757049292496,2.3026,4336.6,4336.5,4.39869903]
[1757049295198,1.9853,4336.6,4336.5,4.39869903]
[1757049295702,1.7844,4336.6,4336.5,4.39869903]
[1757049295996,1.5786,4336.6,4336.5,4.39869903]
[1757049297201,1.7844,4336.6,4336.5,4.39869903]
[1757049297499,1.5786,4336.6,4336.5,4.39869903]
[1757049297903,1.5786,4336.6,4336.5,4.39935051]
[1757049298294,1.7844,4336.6,4336.5,4.39935051]
[1757049298697,1.7844,4336.6,4336.5,4.16635051]
[1757049298893,1.5786,4336.6,4336.5,4.39935051]
[1757049300403,2.3026,4336.6,4336.5,4.39935051]
[1757049300904,2.3026,4336.6,4336.5,4.39946668]
[1757049302492,2.3026,4336.6,4336.5,4.39846668]
[1757049303507,1.9853,4336.6,4336.5,4.39846668]
[1757049303804,1.5786,4336.6,4336.5,4.39862837]
[1757049306605,1.7844,4336.6,4336.5,4.39862837]
[1757049307004,2.1017,4336.6,4336.5,4.39862837]
[1757049307606,2.3026,4336.6,4336.5,4.39862837]
[1757049307905,2.3026,4336.6,4336.5,4.04792837]
[1757049308107,2.3026,4336.6,4336.5,4.27992837]
[1757049308801,2.3026,4336.6,4336.5,4.39862837]
[1757049309403,1.7844,4336.6,4336.5,4.39862837]
[1757049310204,1.7844,4336.6,4336.5,3.31922837]
[1757049310410,7.18606843,4336.6,4336.5,3.31922837]
[1757049310800,7.56668471,4336.6,4336.5,3.31922837]
[1757049311201,6.95546843,4336.6,4336.5,3.31922837]
[1757049311707,7.18746843,4336.6,4336.5,3.31922837]
[1757049313208,11.23633936,4336.6,4335.4,3.2078]
[1757049313401,0.4067,4335.6,4335.5,0.31911517]
[1757049313601,1.56647093,4335.6,4335.5,0.31911517]
[1757049313806,5.56647093,4335.6,4335.5,0.31911517]
[1757049314204,4.956,4335.6,4334.9,3.2078]
[1757049314403,0.4067,4335.0,4334.9,3.2078]
[1757049314606,1.60886843,4335.0,4334.9,3.2078]
[1757049314804,1.60886843,4335.0,4334.9,3.4006]
[1757049315205,2.59716843,4335.0,4334.9,3.4006]
[1757049315411,2.59716843,4335.0,4334.9,3.7047]
[1757049316200,2.59716843,4335.0,4334.9,3.9016]
[1757049317112,2.27986843,4335.0,4334.9,3.9016]
[1757049317312,2.86896843,4335.0,4334.9,3.9016]
[1757049319501,1.5774,4335.0,4334.9,3.9016]
[1757049319714,1.5774,4335.0,4334.9,4.55446843]
[1757049320009,0.4214,4336.0,4334.9,8.66553843]
[1757049320214,0.5311,4335.8,4335.4,0.65286843]
[1757049320407,0.1223,4336.0,4335.7,3.2078]
[1757049320614,0.2991,4335.9,4335.7,3.3968]
[1757049320913,0.1223,4336.0,4335.7,3.3968]
[1757049321300,0.3349,4336.0,4335.7,3.3968]
[1757049321505,0.1223,4336.0,4335.7,3.3968]
[1757049321706,0.2126,4335.8,4335.7,3.3968]
[1757049321906,0.5117,4335.8,4335.7,3.3968]
[1757049322921,0.7103,4335.8,4335.7,3.3968]
[1757049324515,0.7103,4335.8,4335.7,3.2078]
[1757049325209,0.7103,4335.8,4335.7,3.52544366]
[1757049327711,0.7103,4335.8,4335.7,3.5254953]
[1757049334738,0.7103,4335.8,4335.7,3.52582431]
[1757049337523,0.5117,4335.8,4335.7,3.52582431]
[1757049339216,0.5117,4335.8,4335.7,3.52600731]
[1757049339919,0.2991,4335.8,4335.7,3.52600731]
[1757049340616,0.4214,4336.0,4335.7,3.75800731]
[1757049340814,0.2991,4336.0,4335.8,0.31820731]
[1757049341018,0.85119037,4336.5,4335.9,0.31820731]
[1757049341219,0.2991,4336.4,4336.3,3.2078]
[1757049341516,0.5117,4336.4,4336.3,3.52600731]
[1757049342825,0.7103,4336.4,4336.3,3.52600731]
[1757049346430,0.7103,4336.4,4336.3,3.52617718]
[1757049351835,0.7103,4336.4,4336.3,0.31837718]
[1757049352034,1.32121899,4336.4,4336.3,0.31837718]
[1757049355637,1.55321899,4336.4,4336.3,0.31837718]
[1757049360747,1.56571899,4336.4,4336.3,0.31836231]
[1757049366150,1.33371899,4336.4,4336.3,0.31836231]
[1757049366351,0.9548,4336.4,4336.3,0.31836231]
[1757049366848,0.7228,4336.4,4336.3,0.31836231]
[1757049367048,0.9548,4336.4,4336.3,0.31836231]
[1757049367544,0.5242,4336.4,4336.3,0.31836231]
[1757049367746,1.75989037,4336.4,4336.3,0.31836231]
[1757049367942,0.2121,4335.2,4335.1,3.2078]
[1757049368256,1.52789037,4335.2,4335.1,3.2078]
[1757049376557,0.7327,4335.2,4335.1,3.2078]
[1757049376755,1.52789037,4335.2,4335.1,3.2078]
[1757049377258,0.4211,4334.7,4334.6,3.2078]
[1757049377459,1.75989037,4334.7,4334.6,3.2078]
[1757049378764,0.1961,4334.4,4334.0,3.2078]
[1757049378959,0.3179,4334.1,4334.0,3.2078]
[1757049380661,0.514,4334.1,4334.0,3.2078]
[1757049381162,0.7232,4334.1,4334.0,3.2078]
[1757049381569,1.37690589,4334.1,4334.0,3.2078]
[1757049382456,1.16770589,4334.1,4334.0,3.2078]
[1757049385872,0.97160589,4334.1,4334.0,3.2078]
[1757049387471,1.37690589,4334.1,4334.0,3.2078]
[1757049392369,0.97160589,4334.1,4334.0,3.2078]
[1757049392570,1.20360589,4334.1,4334.0,3.2078]
[1757049393868,0.97160589,4334.4,4334.0,3.2078]
[1757049394267,0.65370589,4334.4,4334.0,3.2078]
[1757049394461,0.3179,4334.3,4334.0,3.2078]
[1757049395059,0.3179,4334.2,4334.0,3.2078]
[1757049395365,0.3179,4334.3,4334.0,3.2078]
[1757049395571,0.65370589,4334.4,4334.0,3.2078]
[1757049395776,0.3179,4334.2,4334.0,3.2078]
[1757049395965,0.3179,4334.1,4334.0,3.2078]
[1757049400175,0.1233,4334.5,4334.0,3.2078]
[1757049400474,0.97160589,4334.3,4334.0,3.2078]
[1757049400676,0.3179,4334.2,4334.0,3.2078]
[1757049400975,0.3179,4334.1,4334.0,3.2078]
[1757049402777,0.3179,4334.2,4334.0,3.2078]
[1757049403168,0.3179,4334.1,4334.0,3.2078]
[1757049404477,0.3179,4334.2,4334.0,3.2078]
[1757049404670,0.65370589,4334.3,4334.0,3.2078]
[1757049404869,0.3179,4334.1,4334.0,3.2078]
[1757049405582,0.3179,4334.7,4334.0,8.32423589]
[1757049405777,0.1258,4335.0,4334.6,3.2078]
[1757049406075,0.3179,4335.2,4334.6,3.4398]
[1757049406877,0.3179,4335.2,4334.6,3.67049]
[1757049407880,0.3179,4335.2,4335.1,3.2078]
[1757049408375,0.514,4335.2,4335.1,3.2078]
[1757049410272,0.3179,4335.2,4335.1,3.2078]
[1757049410479,0.232,4335.8,4335.1,3.2078]
[1757049410480,0.3213,4335.4,4335.1,3.2078]
[1757049411179,0.77950589,4335.5,4335.1,3.2078]
[1757049412381,0.3213,4335.4,4335.1,3.2078]
[1757049412676,0.98040589,4335.5,4335.1,3.2078]
[1757049412881,0.3213,4335.4,4335.1,3.2078]
[1757049413278,0.65370589,4335.8,4335.2,0.232]
[1757049413577,0.3213,4335.9,4335.7,3.2078]
[1757049413773,0.1258,4336.0,4335.7,3.2078]
[1757049414179,0.3213,4335.9,4335.7,3.2078]
[1757049414387,0.1258,4336.0,4335.7,3.2078]
[1757049414883,0.3213,4335.9,4335.7,3.2078]
[1757049415079,0.65370589,4335.8,4335.7,3.2078]
[1757049415288,1.17590589,4335.8,4335.7,3.2078]
[1757049417673,0.3213,4335.9,4335.7,3.2078]
[1757049417877,0.65370589,4336.3,4335.7,3.2078]
[1757049418286,0.65370589,4336.3,4335.8,0.232]
[1757049418586,0.3213,4336.2,4335.8,0.232]
[1757049418778,0.65370589,4336.3,4335.8,0.232]
[1757049419382,0.3213,4336.2,4335.8,0.232]
[1757049419579,0.2009,4336.2,4335.8,0.232]
[1757049419779,0.85460589,4336.3,4335.8,0.232]
[1757049419979,0.3213,4336.2,4335.8,0.232]
[1757049420179,0.5222,4336.2,4335.8,0.232]
[1757049420785,0.65370589,4336.3,4335.8,0.232]
[1757049421000,0.97500589,4336.3,4336.2,3.2078]
[1757049421183,0.1233,4336.5,4336.2,3.2078]
[1757049421487,0.3213,4336.4,4336.2,3.2078]
[1757049421687,0.3213,4336.4,4336.2,3.4398]
[1757049422587,0.1233,4336.5,4336.2,3.4398]
[1757049423783,0.3213,4336.4,4336.2,3.4398]
[1757049424494,0.1233,4336.5,4336.2,3.4398]
[1757049424884,0.3213,4336.4,4336.2,3.4398]
[1757049425285,0.65370589,4337.1,4336.2,4.09350589]
[1757049425486,0.3213,4337.3,4336.9,3.2078]
[1757049425784,0.3213,4337.3,4337.0,0.232]
[1757049425986,0.85460589,4337.4,4337.0,0.232]
[1757049426186,0.3213,4337.3,4337.0,0.232]
[1757049426490,0.5222,4337.3,4337.0,0.232]
[1757049428988,0.77010589,4337.5,4337.0,0.232]
[1757049429193,0.7363,4337.1,4337.0,0.232]
[1757049432001,0.5222,4337.1,4337.0,0.232]
[1757049434892,0.3213,4337.1,4337.0,0.232]
[1757049436691,0.1164,4337.5,4337.0,0.232]
[1757049436894,0.6386,4337.5,4337.4,3.2078]
[1757049437090,0.8527,4337.5,4337.4,3.4398]
[1757049438797,1.50640589,4337.5,4337.4,3.4398]
[1757049440299,1.50640589,4337.5,4337.4,4.09350589]
[1757049440300,0.4377,4337.5,4337.4,4.09350589]
[1757049442790,0.6521,4337.5,4337.4,3.4398]
[1757049442991,0.6521,4337.5,4337.4,3.7572027]
[1757049446000,0.86,4337.5,4337.4,3.7572027]
[1757049447599,0.86,4337.5,4337.4,3.2078]
[1757049447805,0.86,4337.5,4337.4,3.4398]
[1757049449705,0.3308,4338.0,4337.9,0.6879]
[1757049449896,0.3308,4338.0,4337.9,4.1277]
[1757049450101,0.5387,4338.0,4337.9,3.8284]
[1757049451696,0.8408,4338.0,4337.9,3.8284]
[1757049451897,0.8408,4338.0,4337.9,4.1277]
[1757049452099,0.8408,4338.0,4337.9,3.8284]
[1757049453307,0.8408,4338.0,4337.9,4.1277]
[1757049454501,0.1164,4338.5,4337.9,4.1277]
[1757049454700,0.6329,4338.5,4338.4,3.8957]
[1757049454899,0.8408,4338.5,4338.4,3.8957]
[1757049455106,0.8408,4338.5,4338.4,3.5964]
[1757049455304,0.8408,4338.5,4338.4,3.8957]
[1757049456007,0.5165,4338.5,4338.4,3.8957]
[1757049456304,0.3021,4338.8,4338.7,0.3886]
[1757049456500,0.3021,4338.8,4338.7,0.6879]
[1757049457005,0.5165,4338.8,4338.7,0.6879]
[1757049458006,0.7244,4338.8,4338.7,0.6879]
[1757049458396,0.7244,4338.8,4338.7,0.3886]
[1757049459809,0.7244,4338.8,4338.7,0.6879]
[1757049461004,0.7244,4338.8,4338.7,0.3886]
[1757049462598,0.7244,4338.8,4338.6,0.232]
[1757049463005,0.4223,4338.8,4338.6,0.232]
[1757049463309,0.7244,4338.7,4338.6,0.4258]
[1757049463709,0.7244,4338.7,4338.6,0.9199]
[1757049463916,0.3021,4338.7,4338.6,0.9199]
[1757049468514,0.7123,4338.7,4338.6,0.6206]
[1757049469606,0.7123,4338.7,4338.6,0.4258]
[1757049469808,0.7123,4338.7,4338.6,0.232]
[1757049470908,0.7123,4338.7,4338.6,0.4411]
[1757049473527,0.4869,4338.9,4338.7,0.2997]
[1757049473710,0.17,4338.9,4338.8,0.9461]
[1757049473911,0.17,4338.9,4338.8,4.9461]
[1757049474215,0.17,4338.9,4338.8,5.17658]
[1757049474517,0.3169,4339.5,4339.4,0.4144]
[1757049474716,0.3169,4339.5,4339.4,4.1539]
[1757049474916,0.3169,4339.8,4339.4,4.1539]
[1757049475112,0.1254,4340.0,4339.5,0.7141]
[1757049475318,0.79775,4339.6,4339.5,0.7141]
[1757049476111,0.48085,4339.6,4339.5,0.7141]
[1757049476315,1.24018709,4341.6,4341.0,2.307]
[1757049476617,0.3169,4342.7,4341.7,0.41452]
[1757049476820,0.3169,4342.7,4342.6,3.2078]
[1757049477117,0.1174,4343.0,4342.6,4.12029955]
[1757049477320,0.1174,4343.0,4342.7,0.67749955]
[1757049477512,0.7124,4342.9,4342.8,0.91249955]
[1757049477912,0.7124,4342.9,4342.8,0.67749955]
[1757049478321,4.7124,4342.9,4342.8,0.67749955]
[1757049478509,0.7124,4342.9,4342.8,0.67749955]
[1757049480710,5.50693737,4342.9,4342.8,0.35569955]
[1757049480913,5.50693737,4342.9,4342.1,3.2078]
[1757049481112,0.79453737,4342.7,4342.1,3.2078]
[1757049481318,0.79453737,4342.7,4339.7,2.05756738]
[1757049481319,0.3955,4341.7,4341.6,3.2078]
[1757049481519,0.7124,4341.7,4341.2,0.2997]
[1757049482018,0.79453737,4341.8,4341.3,0.41140729]
[1757049482019,0.7124,4341.4,4341.3,0.41140729]
[1757049482420,0.7124,4341.4,4341.3,0.91640729]
[1757049482620,0.3955,4341.7,4341.6,0.5088]
[1757049482818,0.7124,4341.7,4341.6,3.41010729]
[1757049483825,4.7124,4341.7,4341.6,3.41010729]
[1757049484022,4.7124,4341.7,4341.6,0.20230729]
[1757049484319,0.7124,4340.6,4340.5,3.7166]
[1757049484720,0.7124,4340.6,4340.5,3.9219]
[1757049484915,0.7124,4340.6,4340.5,3.2078]
[1757049486719,0.7124,4340.6,4339.0,0.1254]
[1757049486720,0.8298,4340.0,4339.9,3.2078]
[1757049487426,4.8298,4340.0,4339.9,3.2078]
[1757049488119,4.8298,4340.0,4339.3,3.2078]
[1757049488424,0.3955,4339.4,4339.3,3.2078]
[1757049488624,0.7124,4339.4,4339.3,3.2078]
[1757049489328,0.7124,4339.4,4339.3,3.7166]
[1757049491031,0.7124,4339.4,4339.3,0.5088]
[1757049492731,0.7124,4339.4,4339.1,0.2997]
[1757049492732,0.3169,4339.3,4339.1,0.2997]
[1757049492932,0.7124,4339.3,4339.2,1.21709629]
[1757049493233,0.7124,4339.3,4339.2,0.70829629]
[1757049496134,0.7124,4339.3,4339.2,1.21719359]
[1757049497328,0.7124,4339.3,4339.2,0.70839359]
[1757049498928,0.7124,4339.3,4339.2,0.91749359]
[1757049499134,0.7124,4339.3,4339.2,0.70839359]
[1757049499634,0.1176,4339.0,4338.7,0.02791]
[1757049499830,3.737,4338.9,4338.8,0.34833291]
[1757049500031,4.1395,4338.9,4338.8,0.34833291]
[1757049501635,4.1395,4338.9,4338.7,0.02791]
[1757049501838,4.1395,4338.9,4337.2,0.236]
[1757049501839,8.1395,4338.9,4337.9,0.3117]
[1757049502039,4.1395,4338.9,4337.9,0.3117]
[1757049502535,4.1395,4338.9,4337.6,3.2078]
[1757049502740,4.1395,4338.9,4337.6,3.714]
[1757049502741,0.6957,4337.7,4337.6,3.714]
[1757049503042,0.9317,4337.7,4337.6,3.714]
[1757049504746,0.9317,4337.7,4337.6,3.919]
[1757049509043,0.6385,4337.7,4337.6,3.919]
[1757049509440,1.29114934,4337.7,4337.6,3.919]
[1757049509940,1.29114934,4337.7,4337.6,0.7112]
[1757049510738,1.58434934,4337.7,4337.6,0.7112]
[1757049511740,1.58434934,4337.7,4337.6,1.07152214]
[1757049512744,5.58434934,4337.7,4336.5,0.118]
[1757049513050,0.6957,4336.9,4336.8,0.7112]
[1757049513249,0.9317,4336.9,4336.8,0.7112]
[1757049513749,0.9317,4336.9,4336.8,1.066508]
[1757049514147,1.05514934,4336.9,4336.8,1.066508]
[1757049514349,1.08174934,4336.9,4336.8,1.066508]
[1757049515548,1.29114934,4336.9,4336.8,1.066508]
[1757049515745,1.58434934,4336.9,4336.8,1.066508]
[1757049515945,0.9317,4336.9,4336.8,1.066508]
[1757049516144,1.29114934,4336.9,4336.8,1.066508]
[1757049517949,1.29114934,4336.9,4336.8,1.05919674]
[1757049518552,1.29114934,4336.9,4336.8,0.7112]
[1757049518744,1.58434934,4336.9,4336.8,0.7112]
[1757049519156,1.29114934,4336.9,4336.8,0.7112]
[1757049519356,1.08174934,4336.9,4336.8,0.7112]
[1757049519654,0.84574934,4336.9,4336.8,0.7112]
[1757049519847,1.08174934,4336.9,4336.8,0.7112]
[1757049520447,0.84574934,4336.9,4336.8,0.7112]
[1757049520654,1.08174934,4336.9,4336.8,0.7112]
[1757049520849,1.29114934,4336.9,4336.8,0.7112]
[1757049521157,1.58434934,4336.9,4336.8,0.7112]
[1757049521348,1.58434934,4336.9,4336.8,0.5062]
[1757049521549,1.58434934,4336.9,4336.6,0.3117]
[1757049521851,1.05514934,4336.7,4336.6,0.5062]
[1757049522048,1.34834934,4336.7,4336.6,0.5062]
[1757049522445,1.34834934,4336.7,4336.6,0.84496891]
[1757049522643,1.34834934,4336.7,4336.6,0.33876891]
[1757049522852,2.00099868,4336.7,4336.6,0.33876891]
[1757049523449,6.00099868,4336.7,4336.6,0.33876891]
[1757049523654,10.01758031,4336.7,4335.9,0.3117]
[1757049523852,0.4025,4335.7,4335.6,0.1945]
[1757049524053,1.58334934,4335.7,4335.6,0.7112]
[1757049524553,1.58334934,4335.7,4335.6,0.5062]
[1757049524746,1.58334934,4335.7,4335.6,0.82328575]
[1757049524952,1.58334934,4335.7,4335.6,0.31708575]
[1757049525156,1.58334934,4335.7,4335.6,0.82328575]
[1757049525349,1.58334934,4335.7,4335.6,1.02828575]
[1757049526555,1.58334934,4335.7,4335.6,0.82328575]
[1757049526759,1.58334934,4335.7,4335.6,0.31708575]
[1757049527261,1.58334934,4335.7,4335.6,0.62878575]
[1757049530362,1.58334934,4335.7,4335.6,0.82898575]
[1757049531261,2.16179752,4335.7,4335.6,0.82898575]
[1757049532761,5.36959752,4335.7,4335.6,0.31708575]
[1757049533573,5.36959752,4335.7,4334.9,0.3158]
[1757049533755,5.36959752,4335.7,4335.0,0.31716022]
[1757049533756,0.6982,4335.1,4335.0,0.31716022]
[1757049533962,1.51164818,4335.1,4335.0,1.03696022]
[1757049534263,1.51164818,4335.1,4335.0,1.15416022]
[1757049534867,2.16429752,4335.1,4335.0,1.15416022]
[1757049535067,2.16429752,4335.1,4335.0,1.03696022]
[1757049535460,2.16429752,4335.1,4335.0,0.83316022]
[1757049535766,1.92929752,4335.1,4335.0,1.15830468]
[1757049535962,2.16429752,4335.1,4335.0,0.64230468]
[1757049536662,2.16429752,4335.1,4335.0,0.95810468]
[1757049537169,2.81694686,4335.1,4335.0,0.64230468]
[1757049537463,0.6982,4334.2,4334.1,0.7198]
[1757049537669,1.28364934,4334.2,4334.1,0.7198]
[1757049538166,1.08364934,4334.2,4334.1,0.7198]
[1757049538362,0.88764934,4334.2,4334.1,0.7198]
[1757049538567,0.85464934,4334.2,4334.1,0.7198]
[1757049539070,0.196,4334.2,4334.1,0.7198]
[1757049539269,1.07764934,4334.2,4334.1,0.7198]
[1757049539868,0.84864934,4334.2,4334.1,0.7198]
[1757049540072,1.08364934,4334.2,4334.1,0.7198]
[1757049540274,0.196,4334.6,4334.5,0.1172]
[1757049540459,0.431,4334.6,4334.5,0.837]
[1757049540665,3.86044934,4334.7,4334.6,0.7198]
[1757049540872,4.09544934,4334.7,4334.6,0.7198]
[1757049541171,4.29144934,4334.7,4334.6,0.7198]
[1757049542178,3.2078,4334.7,4334.6,0.7198]
[1757049542474,3.4428,4334.7,4334.6,0.7198]
[1757049542664,4.141,4334.7,4334.6,0.7198]
[1757049542969,3.8388,4334.7,4334.6,0.7198]
[1757049543172,3.4428,4334.7,4334.6,0.7198]
[1757049543372,3.4428,4334.7,4334.6,4.9505]
[1757049543373,3.2078,4334.7,4334.6,4.9505]
[1757049543772,3.2078,4334.7,4334.6,4.7198]
[1757049544570,1.04864934,4334.9,4334.8,0.404]
[1757049544777,1.35084934,4334.9,4334.8,0.516]
[1757049544971,0.6982,4334.9,4334.8,0.516]
[1757049545677,0.3022,4334.8,4334.7,0.2002]
[1757049545976,1.35084934,4334.8,4334.7,0.7198]
[1757049547076,1.35084934,4334.8,4334.1,0.3158]
[1757049547370,1.35084934,4334.2,4334.1,0.516]
[1757049547570,1.58584934,4334.2,4334.1,0.516]
[1757049548075,0.3022,4334.1,4333.6,3.2078]
[1757049548275,0.84864934,4333.7,4333.6,3.6118]
[1757049548667,0.84864934,4333.7,4333.6,3.9276]
[1757049549266,0.84864934,4333.7,4333.6,4.22333866]
[1757049549471,0.84864934,4333.7,4333.6,4.54639541]
[1757049551677,1.35084934,4333.7,4333.6,1.33859541]
[1757049552773,1.35084934,4333.7,4333.6,1.13479541]
[1757049552972,1.35084934,4333.7,4333.6,0.61877205]
[1757049554870,1.35084934,4333.7,4333.0,0.1172]
[1757049554871,2.00349868,4333.7,4332.8,0.17540418]
[1757049555076,0.396,4333.0,4332.9,0.81019118]
[1757049555277,0.9332,4333.0,4332.9,1.32979118]
[1757049555478,0.9332,4333.0,4332.9,1.04290182]
[1757049556283,1.58584934,4333.0,4332.9,1.04290182]
[1757049558889,1.58584934,4333.0,4332.9,0.83910182]
[1757049559089,1.58584934,4333.0,4332.9,1.04990182]
[1757049563198,1.58584934,4333.0,4332.9,0.7268]
[1757049565491,1.84842144,4333.0,4332.8,0.17540418]
[1757049565692,0.3142,4332.9,4332.8,0.47310418]
[1757049565893,0.7198,4332.9,4332.8,0.47310418]
[1757049566197,0.7198,4332.9,4332.8,0.67350418]
[1757049568296,0.7198,4332.9,4332.8,0.88430418]
[1757049569295,0.235,4333.0,4332.8,0.88430418]
[1757049569494,3.2078,4333.3,4333.1,0.2977]
[1757049569495,0.79652144,4333.2,4333.1,0.2977]